[Event "Titled Tuesday Blitz April 4 Early 2023"]
[White "Acikel, Mert"]
[Black "Svane, Rasmus"]
[WhiteFideId "12956465"]
[BlackFideId "4657101"]
[WhiteElo "2097"]
[BlackElo "2597"]
[Result "0-1"]
[Round "02"]
[TimeControl "180+2"]
[Date "2023.04.04"]
[WhiteClock "0:00:06"]
[BlackClock "0:01:02"]

1. e4 {[%clk 0:02:56]}  c6 {[%clk 0:02:59]} 2. Nc3 {[%clk 0:02:56]}  d5 {[%clk 0:03:00]} 3. Nf3 {[%clk 0:02:57]}  dxe4 {[%clk 0:03:00]} 4. Nxe4 {[%clk 0:02:57]}  Nf6 {[%clk 0:03:00]} 5. Qe2 {[%clk 0:02:57]}  Nxe4 {[%clk 0:03:01]} 6. Qxe4 {[%clk 0:02:58]}  Qa5 {[%clk 0:03:02]} 7. Bc4 {[%clk 0:02:52]}  Bf5 {[%clk 0:03:01]} 8. Qf4 {[%clk 0:02:52]}  e6 {[%clk 0:03:01]} 9. c3 {[%clk 0:02:50]}  Qd8 {[%clk 0:03:01]} 10. O-O {[%clk 0:02:49]}  Bd6 {[%clk 0:03:02]} 11. Qe3 {[%clk 0:02:48]}  O-O {[%clk 0:03:02]} 12. d4 {[%clk 0:02:47]}  Nd7 {[%clk 0:03:02]} 13. Rd1 {[%clk 0:02:47]}  Qc7 {[%clk 0:02:58]} 14. h3 {[%clk 0:02:46]}  Rfe8 {[%clk 0:02:57]} 15. Bb3 {[%clk 0:02:38]}  c5 {[%clk 0:02:48]} 16. Qe2 {[%clk 0:02:35]}  Rac8 {[%clk 0:02:40]} 17. Be3 {[%clk 0:02:30]}  c4 {[%clk 0:02:36]} 18. Bc2 {[%clk 0:02:30]}  Bxc2 {[%clk 0:02:27]} 19. Qxc2 {[%clk 0:02:31]}  Nf6 {[%clk 0:02:27]} 20. Re1 {[%clk 0:02:24]}  h6 {[%clk 0:02:24]} 21. Rad1 {[%clk 0:02:22]}  b5 {[%clk 0:02:23]} 22. Bd2 {[%clk 0:02:17]}  a5 {[%clk 0:02:23]} 23. Ne5 {[%clk 0:02:17]}  Red8 {[%clk 0:02:12]} 24. Bf4 {[%clk 0:02:10]}  Nd5 {[%clk 0:02:07]} 25. Bg3 {[%clk 0:02:06]}  b4 {[%clk 0:02:03]} 26. cxb4 {[%clk 0:01:51]}  axb4 {[%clk 0:01:54]} 27. Rc1 {[%clk 0:01:49]}  c3 {[%clk 0:01:53]} 28. b3 {[%clk 0:01:31]}  Ra8 {[%clk 0:01:49]} 29. Bh4 {[%clk 0:01:31]}  Rdc8 {[%clk 0:01:44]} 30. Nc4 {[%clk 0:01:32]}  Be7 {[%clk 0:01:42]} 31. Bg3 {[%clk 0:01:32]}  Qa7 {[%clk 0:01:42]} 32. Ra1 {[%clk 0:01:32]}  Qxd4 {[%clk 0:01:39]} 33. Rad1 {[%clk 0:01:28]}  Qa7 {[%clk 0:01:39]} 34. Re2 {[%clk 0:01:18]}  Bf6 {[%clk 0:01:35]} 35. Kh1 {[%clk 0:01:12]}  Rd8 {[%clk 0:01:33]} 36. f3 {[%clk 0:01:03]}  Ne7 {[%clk 0:01:32]} 37. Bf2 {[%clk 0:01:02]}  Qb7 {[%clk 0:01:25]} 38. Nd6 {[%clk 0:00:57]}  Qc6 {[%clk 0:01:15]} 39. Ne4 {[%clk 0:00:58]}  Rxd1+ {[%clk 0:01:15]} 40. Qxd1 {[%clk 0:00:57]}  Nd5 {[%clk 0:01:15]} 41. Bc5 {[%clk 0:00:53]}  Be7 {[%clk 0:01:13]} 42. Bd4 {[%clk 0:00:50]}  Rd8 {[%clk 0:01:13]} 43. Qg1 {[%clk 0:00:48]}  Nf4 {[%clk 0:01:10]} 44. Rc2 {[%clk 0:00:47]}  Qd5 {[%clk 0:01:07]} 45. Bb6 {[%clk 0:00:45]}  Rd7 {[%clk 0:01:06]} 46. Kh2 {[%clk 0:00:10]}  Qd3 {[%clk 0:01:05]} 47. Qb1 {[%clk 0:00:06]}  Bd6 {[%clk 0:01:02]} 0-1


[Site "https://www.chess.com"]

[Event "Titled Tuesday Blitz April 4 Early 2023"]
[White "Gholami Orimi, Mahdi"]
[Black "Turzo, Attila"]
[WhiteFideId "12558486"]
[BlackFideId "704954"]
[WhiteElo "2363"]
[BlackElo "2520"]
[Result "1-0"]
[Round "02"]
[TimeControl "180+2"]
[Date "2023.04.04"]
[WhiteClock "0:01:22"]
[BlackClock "0:00:01"]

1. Nf3 {[%clk 0:03:00]}  c5 {[%clk 0:02:59]} 2. b3 {[%clk 0:03:00]}  Nf6 {[%clk 0:02:53]} 3. Bb2 {[%clk 0:02:58]}  g6 {[%clk 0:02:53]} 4. e3 {[%clk 0:02:57]}  Bg7 {[%clk 0:02:53]} 5. Be2 {[%clk 0:02:57]}  O-O {[%clk 0:02:52]} 6. O-O {[%clk 0:02:56]}  d5 {[%clk 0:02:52]} 7. Na3 {[%clk 0:02:56]}  Nc6 {[%clk 0:02:51]} 8. h3 {[%clk 0:02:53]}  d4 {[%clk 0:02:46]} 9. Bb5 {[%clk 0:02:50]}  Ne8 {[%clk 0:02:24]} 10. Bxc6 {[%clk 0:02:47]}  bxc6 {[%clk 0:02:25]} 11. exd4 {[%clk 0:02:43]}  cxd4 {[%clk 0:02:24]} 12. Re1 {[%clk 0:02:44]}  c5 {[%clk 0:02:12]} 13. d3 {[%clk 0:02:44]}  Bb7 {[%clk 0:02:06]} 14. Nc4 {[%clk 0:02:41]}  Nd6 {[%clk 0:01:58]} 15. a4 {[%clk 0:02:35]}  Nxc4 {[%clk 0:01:55]} 16. bxc4 {[%clk 0:02:36]}  Qd6 {[%clk 0:01:43]} 17. a5 {[%clk 0:02:34]}  e5 {[%clk 0:01:43]} 18. Ba3 {[%clk 0:02:27]}  f5 {[%clk 0:01:37]} 19. Rb1 {[%clk 0:02:26]}  Bc6 {[%clk 0:01:33]} 20. Nd2 {[%clk 0:02:26]}  Rac8 {[%clk 0:01:13]} 21. Nb3 {[%clk 0:02:21]}  Ba8 {[%clk 0:01:13]} 22. Nd2 {[%clk 0:02:16]}  Rfe8 {[%clk 0:01:10]} 23. Rb5 {[%clk 0:02:11]}  a6 {[%clk 0:01:03]} 24. Rb6 {[%clk 0:02:07]}  Rc6 {[%clk 0:00:59]} 25. Qb1 {[%clk 0:02:07]}  e4 {[%clk 0:00:52]} 26. dxe4 {[%clk 0:02:05]}  fxe4 {[%clk 0:00:39]} 27. Nxe4 {[%clk 0:01:53]}  Qe5 {[%clk 0:00:07]} 28. f3 {[%clk 0:01:36]}  Rec8 {[%clk 0:00:03]} 29. Nxc5 {[%clk 0:01:31]}  Qf4 {[%clk 0:00:02]} 30. Rxc6 {[%clk 0:01:28]}  Bxc6 {[%clk 0:00:02]} 31. Ne6 {[%clk 0:01:26]}  Qd2 {[%clk 0:00:01]} 32. Bb4 {[%clk 0:01:22]} 1-0


[Site "https://www.chess.com"]

[Event "Titled Tuesday Blitz April 4 Early 2023"]
[White "Bacrot, Etienne"]
[Black "Padmini, Rout"]
[WhiteFideId "605506"]
[BlackFideId "5029295"]
[WhiteElo "2663"]
[BlackElo "2314"]
[Result "1-0"]
[Round "02"]
[TimeControl "180+2"]
[Date "2023.04.04"]
[WhiteClock "0:00:09"]
[BlackClock "0:00:02"]

1. d4 {[%clk 0:03:00]}  Nf6 {[%clk 0:02:59]} 2. Nf3 {[%clk 0:03:00]}  e6 {[%clk 0:02:59]} 3. c4 {[%clk 0:03:00]}  d5 {[%clk 0:02:59]} 4. Nc3 {[%clk 0:02:59]}  Bb4 {[%clk 0:02:58]} 5. Qa4+ {[%clk 0:02:57]}  Nc6 {[%clk 0:02:58]} 6. cxd5 {[%clk 0:02:58]}  exd5 {[%clk 0:02:58]} 7. Bg5 {[%clk 0:02:59]}  h6 {[%clk 0:02:53]} 8. Bxf6 {[%clk 0:02:59]}  Qxf6 {[%clk 0:02:54]} 9. e3 {[%clk 0:02:59]}  O-O {[%clk 0:02:52]} 10. Bb5 {[%clk 0:02:59]}  Bd7 {[%clk 0:02:45]} 11. O-O {[%clk 0:02:59]}  Bxc3 {[%clk 0:02:43]} 12. bxc3 {[%clk 0:02:58]}  a6 {[%clk 0:02:44]} 13. Bxc6 {[%clk 0:02:58]}  Bxc6 {[%clk 0:02:45]} 14. Qb3 {[%clk 0:02:59]}  Bb5 {[%clk 0:02:38]} 15. Rfe1 {[%clk 0:02:59]}  Qd6 {[%clk 0:02:13]} 16. Ne5 {[%clk 0:02:58]}  f6 {[%clk 0:02:09]} 17. Ng6 {[%clk 0:02:58]}  Rfe8 {[%clk 0:02:09]} 18. Qb1 {[%clk 0:02:42]}  Kf7 {[%clk 0:01:57]} 19. Nf4 {[%clk 0:02:31]}  Kg8 {[%clk 0:01:43]} 20. Qg6 {[%clk 0:02:12]}  Re7 {[%clk 0:01:32]} 21. h4 {[%clk 0:02:03]}  Be8 {[%clk 0:01:31]} 22. Qf5 {[%clk 0:02:01]}  Bf7 {[%clk 0:01:31]} 23. h5 {[%clk 0:02:01]}  Qd7 {[%clk 0:01:25]} 24. Qc2 {[%clk 0:01:54]}  c5 {[%clk 0:01:21]} 25. a4 {[%clk 0:01:43]}  Rc8 {[%clk 0:01:20]} 26. Qb2 {[%clk 0:01:39]}  Qf5 {[%clk 0:01:11]} 27. Qb1 {[%clk 0:01:34]}  Qg5 {[%clk 0:01:02]} 28. Qd1 {[%clk 0:01:18]}  Qf5 {[%clk 0:00:47]} 29. a5 {[%clk 0:01:14]}  Rec7 {[%clk 0:00:47]} 30. Qf3 {[%clk 0:01:09]}  cxd4 {[%clk 0:00:22]} 31. cxd4 {[%clk 0:01:10]}  Qe4 {[%clk 0:00:22]} 32. Qg4 {[%clk 0:00:59]}  Kh7 {[%clk 0:00:15]} 33. Reb1 {[%clk 0:00:55]}  Rd8 {[%clk 0:00:13]} 34. Rb6 {[%clk 0:00:52]}  Re8 {[%clk 0:00:10]} 35. Qg3 {[%clk 0:00:47]}  Ree7 {[%clk 0:00:10]} 36. Qg4 {[%clk 0:00:35]}  Qc2 {[%clk 0:00:07]} 37. Rd6 {[%clk 0:00:25]}  Qe4 {[%clk 0:00:07]} 38. Rd8 {[%clk 0:00:21]}  Re8 {[%clk 0:00:07]} 39. Rd7 {[%clk 0:00:18]}  Re7 {[%clk 0:00:08]} 40. Rd6 {[%clk 0:00:18]}  Re8 {[%clk 0:00:07]} 41. Kh2 {[%clk 0:00:15]}  Ree7 {[%clk 0:00:07]} 42. Kg3 {[%clk 0:00:14]}  Re8 {[%clk 0:00:07]} 43. Rh1 {[%clk 0:00:12]}  Ree7 {[%clk 0:00:07]} 44. Rh4 {[%clk 0:00:11]}  Re8 {[%clk 0:00:07]} 45. Qh3 {[%clk 0:00:10]}  Qb1 {[%clk 0:00:06]} 46. Qg4 {[%clk 0:00:09]}  Ree7 {[%clk 0:00:06]} 47. Qf3 {[%clk 0:00:08]}  Qe4 {[%clk 0:00:05]} 48. Qe2 {[%clk 0:00:09]}  Re8 {[%clk 0:00:04]} 49. Rg4 {[%clk 0:00:08]}  Qc2 {[%clk 0:00:04]} 50. Qf3 {[%clk 0:00:08]}  Ree7 {[%clk 0:00:04]} 51. Nxd5 {[%clk 0:00:07]}  Bxd5 {[%clk 0:00:04]} 52. Rxd5 {[%clk 0:00:08]}  Rc3 {[%clk 0:00:03]} 53. Qf5+ {[%clk 0:00:08]}  Qxf5 {[%clk 0:00:02]} 54. Rxf5 {[%clk 0:00:09]}  Ra3 {[%clk 0:00:03]} 55. Rc5 {[%clk 0:00:08]}  Rd7 {[%clk 0:00:03]} 56. Re4 {[%clk 0:00:08]}  Rd6 {[%clk 0:00:03]} 57. Re8 {[%clk 0:00:08]}  b6 {[%clk 0:00:02]} 58. Rcc8 {[%clk 0:00:08]}  g5 {[%clk 0:00:02]} 59. Re7# {[%clk 0:00:09]} 1-0


[Site "https://www.chess.com"]

[Event "Titled Tuesday Blitz April 4 Early 2023"]
[White "Ferenc83"]
[Black "Lobanov, Sergei"]
[BlackFideId "24183750"]
[WhiteElo "2503"]
[BlackElo "2489"]
[Result "1-0"]
[Round "02"]
[TimeControl "180+2"]
[Date "2023.04.04"]
[WhiteClock "0:00:51"]
[BlackClock "0:00:02"]

1. e4 {[%clk 0:03:00]}  e5 {[%clk 0:03:00]} 2. Nf3 {[%clk 0:02:59]}  Nc6 {[%clk 0:03:00]} 3. Bb5 {[%clk 0:02:58]}  a6 {[%clk 0:03:00]} 4. Ba4 {[%clk 0:02:58]}  d6 {[%clk 0:03:00]} 5. c3 {[%clk 0:02:57]}  Bd7 {[%clk 0:03:00]} 6. d4 {[%clk 0:02:54]}  Nge7 {[%clk 0:03:00]} 7. d5 {[%clk 0:02:53]}  Nb8 {[%clk 0:03:00]} 8. Bxd7+ {[%clk 0:02:52]}  Qxd7 {[%clk 0:03:01]} 9. c4 {[%clk 0:02:52]}  Ng6 {[%clk 0:02:59]} 10. Nc3 {[%clk 0:02:52]}  Be7 {[%clk 0:03:00]} 11. g3 {[%clk 0:02:52]}  O-O {[%clk 0:03:00]} 12. h4 {[%clk 0:02:52]}  f5 {[%clk 0:02:59]} 13. Bg5 {[%clk 0:02:44]}  fxe4 {[%clk 0:02:52]} 14. Nxe4 {[%clk 0:02:43]}  Qf5 {[%clk 0:02:52]} 15. Nfd2 {[%clk 0:02:40]}  Nd7 {[%clk 0:02:52]} 16. Qe2 {[%clk 0:02:32]}  b5 {[%clk 0:02:40]} 17. cxb5 {[%clk 0:01:58]}  axb5 {[%clk 0:02:40]} 18. Qxb5 {[%clk 0:01:54]}  Rab8 {[%clk 0:02:18]} 19. Qc4 {[%clk 0:01:44]}  Rxb2 {[%clk 0:02:05]} 20. Bxe7 {[%clk 0:01:40]}  Nxe7 {[%clk 0:01:59]} 21. O-O {[%clk 0:01:39]}  Rc8 {[%clk 0:01:30]} 22. a4 {[%clk 0:01:33]}  Nb6 {[%clk 0:01:27]} 23. Qc3 {[%clk 0:01:32]}  Rxd2 {[%clk 0:01:20]} 24. Nxd2 {[%clk 0:01:32]}  Nbxd5 {[%clk 0:01:15]} 25. Qc4 {[%clk 0:01:31]}  Kh8 {[%clk 0:01:07]} 26. a5 {[%clk 0:01:31]}  Nf4 {[%clk 0:00:35]} 27. Qe4 {[%clk 0:01:25]}  Qg4 {[%clk 0:00:35]} 28. Qf3 {[%clk 0:01:22]}  Qg6 {[%clk 0:00:31]} 29. a6 {[%clk 0:01:19]}  d5 {[%clk 0:00:24]} 30. a7 {[%clk 0:01:18]}  Ra8 {[%clk 0:00:25]} 31. Kh2 {[%clk 0:01:17]}  Nd3 {[%clk 0:00:19]} 32. Rfb1 {[%clk 0:01:15]}  Nc6 {[%clk 0:00:07]} 33. Qxd5 {[%clk 0:01:13]}  h6 {[%clk 0:00:08]} 34. Ra6 {[%clk 0:00:58]}  Qf5 {[%clk 0:00:04]} 35. Rxc6 {[%clk 0:00:57]}  Nxf2 {[%clk 0:00:03]} 36. Rc4 {[%clk 0:00:51]}  Ng4+ {[%clk 0:00:02]} 1-0


[Site "https://www.chess.com"]

[Event "Titled Tuesday Blitz April 4 Early 2023"]
[White "Maksimovic, Bojan"]
[Black "TheKnightOfBosnia"]
[WhiteFideId "14408120"]
[WhiteElo "2468"]
[BlackElo "2495"]
[Result "1-0"]
[Round "02"]
[TimeControl "180+2"]
[Date "2023.04.04"]
[WhiteClock "0:00:19"]
[BlackClock "0:00:12"]

1. Nf3 {[%clk 0:03:00]}  Nf6 {[%clk 0:03:00]} 2. g3 {[%clk 0:03:01]}  b6 {[%clk 0:03:00]} 3. Bg2 {[%clk 0:03:00]}  Bb7 {[%clk 0:03:00]} 4. O-O {[%clk 0:03:01]}  g6 {[%clk 0:03:00]} 5. d3 {[%clk 0:03:02]}  Bg7 {[%clk 0:03:00]} 6. Nbd2 {[%clk 0:03:02]}  O-O {[%clk 0:02:58]} 7. e4 {[%clk 0:03:03]}  d6 {[%clk 0:02:58]} 8. Re1 {[%clk 0:03:03]}  Nbd7 {[%clk 0:02:58]} 9. c3 {[%clk 0:03:04]}  c5 {[%clk 0:02:57]} 10. a3 {[%clk 0:03:03]}  e6 {[%clk 0:02:57]} 11. b4 {[%clk 0:03:03]}  a6 {[%clk 0:02:57]} 12. Bb2 {[%clk 0:03:04]}  Rc8 {[%clk 0:02:56]} 13. Qe2 {[%clk 0:03:04]}  Qc7 {[%clk 0:02:55]} 14. h4 {[%clk 0:03:04]}  Rfe8 {[%clk 0:02:53]} 15. Rac1 {[%clk 0:03:04]}  Qb8 {[%clk 0:02:44]} 16. c4 {[%clk 0:03:04]}  e5 {[%clk 0:02:41]} 17. Nh2 {[%clk 0:02:59]}  Nf8 {[%clk 0:02:41]} 18. Bh3 {[%clk 0:02:57]}  Rcd8 {[%clk 0:02:39]} 19. Qf1 {[%clk 0:02:50]}  Bc8 {[%clk 0:02:34]} 20. Rb1 {[%clk 0:02:45]}  Qc7 {[%clk 0:02:26]} 21. Bc3 {[%clk 0:02:45]}  Bxh3 {[%clk 0:02:22]} 22. Qxh3 {[%clk 0:02:44]}  Ne6 {[%clk 0:02:23]} 23. Nhf1 {[%clk 0:02:42]}  h5 {[%clk 0:02:20]} 24. Ne3 {[%clk 0:02:36]}  Bh6 {[%clk 0:02:18]} 25. Qf1 {[%clk 0:02:18]}  Nd4 {[%clk 0:02:17]} 26. Kg2 {[%clk 0:02:05]}  Ng4 {[%clk 0:02:04]} 27. Nxg4 {[%clk 0:01:58]}  hxg4 {[%clk 0:02:03]} 28. Bxd4 {[%clk 0:01:52]}  Bxd2 {[%clk 0:02:00]} 29. Re2 {[%clk 0:01:50]}  Bxb4 {[%clk 0:01:50]} 30. Be3 {[%clk 0:00:43]}  Bc3 {[%clk 0:01:50]} 31. Bg5 {[%clk 0:00:42]}  Rb8 {[%clk 0:01:49]} 32. f3 {[%clk 0:00:35]}  f6 {[%clk 0:01:40]} 33. Be3 {[%clk 0:00:30]}  gxf3+ {[%clk 0:01:16]} 34. Qxf3 {[%clk 0:00:30]}  Kg7 {[%clk 0:00:57]} 35. Rf1 {[%clk 0:00:30]}  Rf8 {[%clk 0:00:43]} 36. h5 {[%clk 0:00:27]}  Qf7 {[%clk 0:00:37]} 37. Qg4 {[%clk 0:00:26]}  Rh8 {[%clk 0:00:27]} 38. h6+ {[%clk 0:00:21]}  Kh7 {[%clk 0:00:26]} 39. Ref2 {[%clk 0:00:21]}  f5 {[%clk 0:00:21]} 40. exf5 {[%clk 0:00:21]}  Qb7+ {[%clk 0:00:12]} 41. Kg1 {[%clk 0:00:19]} 1-0


[Site "https://www.chess.com"]

[Event "Titled Tuesday Blitz April 4 Early 2023"]
[White "Dehtiarov, Roman"]
[Black "Dudzinski, Pawel"]
[WhiteFideId "14186640"]
[BlackFideId "1117890"]
[WhiteElo "2189"]
[BlackElo "2099"]
[Result "1-0"]
[Round "02"]
[TimeControl "180+2"]
[Date "2023.04.04"]
[WhiteClock "0:01:28"]
[BlackClock "0:00:03"]

1. d4 {[%clk 0:03:00]}  d5 {[%clk 0:02:56]} 2. c4 {[%clk 0:03:00]}  c6 {[%clk 0:02:57]} 3. Nc3 {[%clk 0:03:00]}  e6 {[%clk 0:02:58]} 4. cxd5 {[%clk 0:02:59]}  cxd5 {[%clk 0:02:57]} 5. Nf3 {[%clk 0:02:59]}  f5 {[%clk 0:02:55]} 6. g3 {[%clk 0:02:57]}  Nc6 {[%clk 0:02:56]} 7. Bg2 {[%clk 0:02:57]}  Nf6 {[%clk 0:02:57]} 8. O-O {[%clk 0:02:58]}  Be7 {[%clk 0:02:57]} 9. a3 {[%clk 0:02:57]}  O-O {[%clk 0:02:58]} 10. b4 {[%clk 0:02:57]}  Bd7 {[%clk 0:02:59]} 11. Bf4 {[%clk 0:02:57]}  Rc8 {[%clk 0:02:59]} 12. Rc1 {[%clk 0:02:57]}  Ne4 {[%clk 0:02:56]} 13. h4 {[%clk 0:02:52]}  Bf6 {[%clk 0:02:38]} 14. Nb5 {[%clk 0:02:42]}  a6 {[%clk 0:02:32]} 15. Nd6 {[%clk 0:02:41]}  Nxd6 {[%clk 0:02:16]} 16. Bxd6 {[%clk 0:02:42]}  Be7 {[%clk 0:02:16]} 17. Bf4 {[%clk 0:02:40]}  Be8 {[%clk 0:02:13]} 18. Qd2 {[%clk 0:02:39]}  Bh5 {[%clk 0:01:59]} 19. Rc3 {[%clk 0:02:34]}  Bxf3 {[%clk 0:01:55]} 20. Bxf3 {[%clk 0:02:35]}  Bf6 {[%clk 0:01:36]} 21. e3 {[%clk 0:02:32]}  h6 {[%clk 0:01:04]} 22. Rfc1 {[%clk 0:02:14]}  g5 {[%clk 0:00:52]} 23. hxg5 {[%clk 0:02:14]}  hxg5 {[%clk 0:00:53]} 24. Be5 {[%clk 0:02:14]}  Bxe5 {[%clk 0:00:53]} 25. dxe5 {[%clk 0:02:14]}  Nxe5 {[%clk 0:00:43]} 26. Be2 {[%clk 0:02:14]}  Rxc3 {[%clk 0:00:23]} 27. Qxc3 {[%clk 0:02:13]}  Qd6 {[%clk 0:00:24]} 28. f4 {[%clk 0:02:03]}  Nc6 {[%clk 0:00:20]} 29. Kf2 {[%clk 0:01:53]}  d4 {[%clk 0:00:20]} 30. exd4 {[%clk 0:01:53]}  Qxd4+ {[%clk 0:00:20]} 31. Qxd4 {[%clk 0:01:52]}  Nxd4 {[%clk 0:00:21]} 32. fxg5 {[%clk 0:01:49]}  Nxe2 {[%clk 0:00:21]} 33. Kxe2 {[%clk 0:01:49]}  e5 {[%clk 0:00:20]} 34. Rc5 {[%clk 0:01:48]}  e4 {[%clk 0:00:17]} 35. Ke3 {[%clk 0:01:48]}  Kg7 {[%clk 0:00:17]} 36. Kf4 {[%clk 0:01:48]}  Rf7 {[%clk 0:00:15]} 37. Re5 {[%clk 0:01:46]}  Kg6 {[%clk 0:00:12]} 38. Re6+ {[%clk 0:01:46]}  Kg7 {[%clk 0:00:12]} 39. a4 {[%clk 0:01:39]}  Kg8 {[%clk 0:00:10]} 40. g6 {[%clk 0:01:32]}  Rf8 {[%clk 0:00:11]} 41. Re7 {[%clk 0:01:33]}  b5 {[%clk 0:00:09]} 42. a5 {[%clk 0:01:33]}  Rc8 {[%clk 0:00:08]} 43. Kxf5 {[%clk 0:01:32]}  Rc3 {[%clk 0:00:06]} 44. g4 {[%clk 0:01:29]}  e3 {[%clk 0:00:06]} 45. Kg5 {[%clk 0:01:28]}  Rc4 {[%clk 0:00:05]} 46. Kh6 {[%clk 0:01:27]}  Kf8 {[%clk 0:00:04]} 47. g7+ {[%clk 0:01:26]}  Kxe7 {[%clk 0:00:04]} 48. g8=Q {[%clk 0:01:26]}  Rxb4 {[%clk 0:00:03]} 49. Qg7+ {[%clk 0:01:25]}  Kd6 {[%clk 0:00:03]} 50. Qf8+ {[%clk 0:01:26]}  Kd5 {[%clk 0:00:03]} 51. Qxb4 {[%clk 0:01:27]}  e2 {[%clk 0:00:03]} 52. Qd2+ {[%clk 0:01:27]}  Kc4 {[%clk 0:00:03]} 53. Qxe2+ {[%clk 0:01:28]} 1-0


[Site "https://www.chess.com"]

[Event "Titled Tuesday Blitz April 4 Early 2023"]
[White "Remizov, Yaroslav"]
[Black "Lach, Aleksandra"]
[WhiteFideId "34134015"]
[BlackFideId "1134299"]
[WhiteElo "2412"]
[BlackElo "2111"]
[Result "1-0"]
[Round "02"]
[TimeControl "180+2"]
[Date "2023.04.04"]
[WhiteClock "0:00:13"]
[BlackClock "0:00:13"]

1. e4 {[%clk 0:02:56]}  c5 {[%clk 0:02:56]} 2. Nc3 {[%clk 0:02:56]}  g6 {[%clk 0:02:51]} 3. d4 {[%clk 0:02:55]}  cxd4 {[%clk 0:02:52]} 4. Qxd4 {[%clk 0:02:56]}  Nf6 {[%clk 0:02:52]} 5. Nf3 {[%clk 0:02:57]}  Nc6 {[%clk 0:02:52]} 6. Qa4 {[%clk 0:02:57]}  d6 {[%clk 0:02:52]} 7. e5 {[%clk 0:02:58]}  dxe5 {[%clk 0:02:53]} 8. Nxe5 {[%clk 0:02:59]}  Bd7 {[%clk 0:02:53]} 9. Nxd7 {[%clk 0:02:58]}  Qxd7 {[%clk 0:02:54]} 10. Be3 {[%clk 0:02:56]}  Bg7 {[%clk 0:02:51]} 11. g3 {[%clk 0:02:55]}  O-O {[%clk 0:02:50]} 12. Rd1 {[%clk 0:02:53]}  Qc8 {[%clk 0:02:50]} 13. Bg2 {[%clk 0:02:51]}  a6 {[%clk 0:02:51]} 14. O-O {[%clk 0:02:51]}  Qe6 {[%clk 0:02:38]} 15. Rfe1 {[%clk 0:02:46]}  Rac8 {[%clk 0:02:16]} 16. Bc5 {[%clk 0:02:29]}  Qf5 {[%clk 0:02:13]} 17. Bxe7 {[%clk 0:02:24]}  Nxe7 {[%clk 0:02:10]} 18. Rxe7 {[%clk 0:02:25]}  Ng4 {[%clk 0:02:03]} 19. Ne4 {[%clk 0:02:14]}  b5 {[%clk 0:01:57]} 20. Qb3 {[%clk 0:02:11]}  Rce8 {[%clk 0:01:41]} 21. Rxe8 {[%clk 0:02:07]}  Rxe8 {[%clk 0:01:42]} 22. h3 {[%clk 0:02:07]}  Ne5 {[%clk 0:01:34]} 23. Nd6 {[%clk 0:02:04]}  Qd7 {[%clk 0:01:34]} 24. Rd5 {[%clk 0:01:54]}  Rf8 {[%clk 0:01:09]} 25. Nxb5 {[%clk 0:01:45]}  Qe7 {[%clk 0:01:09]} 26. Nc3 {[%clk 0:01:44]}  h5 {[%clk 0:00:56]} 27. Rd1 {[%clk 0:01:41]}  h4 {[%clk 0:00:56]} 28. Nd5 {[%clk 0:01:41]}  Qd8 {[%clk 0:00:48]} 29. g4 {[%clk 0:01:33]}  Kh7 {[%clk 0:00:41]} 30. f4 {[%clk 0:01:30]}  Nc6 {[%clk 0:00:39]} 31. g5 {[%clk 0:01:23]}  Nd4 {[%clk 0:00:34]} 32. Qc4 {[%clk 0:01:20]}  Qe8 {[%clk 0:00:27]} 33. c3 {[%clk 0:01:08]}  Nf5 {[%clk 0:00:20]} 34. Qxa6 {[%clk 0:01:06]}  Kh8 {[%clk 0:00:17]} 35. Qd3 {[%clk 0:01:04]}  Ng3 {[%clk 0:00:17]} 36. Qf3 {[%clk 0:00:54]}  Qb5 {[%clk 0:00:16]} 37. Qg4 {[%clk 0:00:50]}  Kg8 {[%clk 0:00:11]} 38. Ne7+ {[%clk 0:00:50]}  Kh8 {[%clk 0:00:11]} 39. Qxh4+ {[%clk 0:00:50]}  Nh5 {[%clk 0:00:12]} 40. Qf2 {[%clk 0:00:47]}  Qa4 {[%clk 0:00:09]} 41. b3 {[%clk 0:00:39]}  Qxf4 {[%clk 0:00:08]} 42. Qxf4 {[%clk 0:00:38]}  Nxf4 {[%clk 0:00:09]} 43. c4 {[%clk 0:00:35]}  Ne2+ {[%clk 0:00:10]} 44. Kf2 {[%clk 0:00:34]}  Nc3 {[%clk 0:00:11]} 45. Rd2 {[%clk 0:00:33]}  Re8 {[%clk 0:00:11]} 46. Nd5 {[%clk 0:00:33]}  Nb1 {[%clk 0:00:11]} 47. Re2 {[%clk 0:00:32]}  Ra8 {[%clk 0:00:11]} 48. c5 {[%clk 0:00:25]}  Bd4+ {[%clk 0:00:11]} 49. Kf3 {[%clk 0:00:24]}  Bxc5 {[%clk 0:00:12]} 50. Nf6 {[%clk 0:00:21]}  Kg7 {[%clk 0:00:12]} 51. Kg4 {[%clk 0:00:17]}  Nc3 {[%clk 0:00:11]} 52. Re8 {[%clk 0:00:16]}  Rxe8 {[%clk 0:00:11]} 53. Nxe8+ {[%clk 0:00:17]}  Kf8 {[%clk 0:00:11]} 54. Nf6 {[%clk 0:00:17]}  Nxa2 {[%clk 0:00:12]} 55. Nd7+ {[%clk 0:00:17]}  Ke7 {[%clk 0:00:12]} 56. Nxc5 {[%clk 0:00:18]}  Nc1 {[%clk 0:00:12]} 57. b4 {[%clk 0:00:14]}  Ne2 {[%clk 0:00:13]} 58. b5 {[%clk 0:00:13]}  Nd4 {[%clk 0:00:13]} 59. b6 {[%clk 0:00:13]}  Kd6 {[%clk 0:00:13]} 60. b7 {[%clk 0:00:13]}  Kc7 {[%clk 0:00:13]} 61. Na6+ {[%clk 0:00:13]} 1-0


[Site "https://www.chess.com"]

[Event "Titled Tuesday Blitz April 4 Early 2023"]
[White "Vivas Zamora, Fabian Ernesto"]
[Black "Csonka, Balazs"]
[WhiteFideId "3902480"]
[BlackFideId "742910"]
[WhiteElo "2262"]
[BlackElo "2404"]
[Result "0-1"]
[Round "02"]
[TimeControl "180+2"]
[Date "2023.04.04"]
[WhiteClock "0:00:01"]
[BlackClock "0:00:05"]

1. e4 {[%clk 0:03:00]}  e5 {[%clk 0:02:57]} 2. Nf3 {[%clk 0:03:00]}  Nc6 {[%clk 0:02:56]} 3. Bc4 {[%clk 0:03:00]}  Nf6 {[%clk 0:02:50]} 4. d3 {[%clk 0:03:00]}  Bc5 {[%clk 0:02:49]} 5. c3 {[%clk 0:02:58]}  O-O {[%clk 0:02:47]} 6. O-O {[%clk 0:02:58]}  d6 {[%clk 0:02:38]} 7. h3 {[%clk 0:02:55]}  a6 {[%clk 0:02:35]} 8. a4 {[%clk 0:02:54]}  Ne7 {[%clk 0:02:30]} 9. d4 {[%clk 0:02:35]}  Ba7 {[%clk 0:02:28]} 10. Re1 {[%clk 0:02:16]}  Ng6 {[%clk 0:02:27]} 11. Bg5 {[%clk 0:01:43]}  h6 {[%clk 0:02:19]} 12. Be3 {[%clk 0:01:03]}  Qe7 {[%clk 0:01:34]} 13. Nbd2 {[%clk 0:00:59]}  Nh7 {[%clk 0:01:26]} 14. dxe5 {[%clk 0:00:48]}  Bxe3 {[%clk 0:01:23]} 15. Rxe3 {[%clk 0:00:47]}  dxe5 {[%clk 0:01:22]} 16. Nf1 {[%clk 0:00:37]}  Bd7 {[%clk 0:01:14]} 17. Qb3 {[%clk 0:00:32]}  Rab8 {[%clk 0:01:04]} 18. Ng3 {[%clk 0:00:27]}  Ng5 {[%clk 0:00:45]} 19. Nf5 {[%clk 0:00:20]}  Qf6 {[%clk 0:00:44]} 20. Nxg5 {[%clk 0:00:10]}  hxg5 {[%clk 0:00:45]} 21. Rf3 {[%clk 0:00:05]}  Nf4 {[%clk 0:00:45]} 22. Ne3 {[%clk 0:00:04]}  Qh6 {[%clk 0:00:21]} 23. Rd1 {[%clk 0:00:04]}  Bc6 {[%clk 0:00:13]} 24. Ng4 {[%clk 0:00:03]}  Qh5 {[%clk 0:00:11]} 25. Bd5 {[%clk 0:00:01]}  Bxd5 {[%clk 0:00:06]} 26. exd5 {[%clk 0:00:02]}  f6 {[%clk 0:00:05]} 27. d6+ {[%clk 0:00:02]}  Kh8 {[%clk 0:00:05]} 28. dxc7 {[%clk 0:00:02]}  Rbc8 {[%clk 0:00:06]} 29. Qxb7 {[%clk 0:00:03]}  Qf7 {[%clk 0:00:05]} 30. Ne3 {[%clk 0:00:02]}  Rxc7 {[%clk 0:00:05]} 31. Qe4 {[%clk 0:00:01]}  Rb8 {[%clk 0:00:05]} 0-1


[Site "https://www.chess.com"]